bitfinex-derivatives/quotes_SOLF0:USTF0_20251018
["timestamp","ask_amount","ask_price","bid_price","bid_amount"]
[1760801522335,6.80882493,184.92,184.84,2.10585714]
[1760801522529,2.68,184.92,184.84,4.94585714]
[1760801523331,4.8666,184.89,184.84,2.10585714]
[1760801523639,4.8666,184.89,184.85,2.84]
[1760801524442,7.5466,184.89,184.85,2.84]
[1760801524837,7.5469,184.88,184.81,2.84]
[1760801525036,7.5469,184.88,184.82,2.10585714]
[1760801525241,7.5469,184.88,184.82,64.10585714]
[1760801525639,4.8669,184.88,184.82,66.94585714]
[1760801526636,4.8669,184.88,184.81,4.8683]
[1760801526637,2.76,184.9,184.8,2.10585714]
[1760801526839,2.10585714,184.88,184.8,2.10585714]
[1760801527040,4.86585714,184.88,184.8,2.10585714]
[1760801527239,4.8677,184.85,184.78,6.97505714]
[1760801527439,4.86585714,184.86,184.77,4.76585714]
[1760801527943,2.76,184.84,184.76,2.66]
[1760801528139,4.86585714,184.84,184.76,2.66]
[1760801528341,4.8692,184.79,184.76,2.66]
[1760801529043,7.6286,184.81,184.75,2.66]
[1760801529244,2.76,184.85,184.76,2.10585714]
[1760801529449,2.76,184.85,184.77,2.66]
[1760801529641,4.8687,184.81,184.77,2.66]
[1760801530046,2.76,184.8,184.74,2.10585714]
[1760801530345,4.86585714,184.8,184.73,64.66]
[1760801531243,4.8693,184.79,184.73,64.66]
[1760801531543,2.76,184.8,184.74,2.10585714]
[1760801532049,7.629,184.8,184.74,2.10585714]
[1760801533137,4.8693,184.79,184.73,64.66]
[1760801533442,2.76,184.78,184.74,4.76585714]
[1760801533740,2.76,184.78,184.72,4.8707]
[1760801533741,2.76,184.76,184.72,45.04]
[1760801534142,2.76,184.76,184.72,47.7]
[1760801534343,2.76,184.76,184.72,2.66]
[1760801534544,2.76,184.82,184.75,2.10585714]
[1760801534746,2.76,184.82,184.77,4.76585714]
[1760801534948,2.10585714,184.88,184.77,2.10585714]
[1760801535144,2.76,184.87,184.77,4.76585714]
[1760801535443,2.10585714,184.88,184.77,4.76585714]
[1760801536042,4.868,184.84,184.77,4.76585714]
[1760801536346,2.10585714,184.86,184.77,4.76585714]
[1760801536752,2.10585714,184.86,184.78,62.0]
[1760801537451,2.76,184.87,184.78,62.0]
[1760801538152,4.8682,184.83,184.78,64.65]
[1760801538445,7.5382,184.83,184.78,64.65]
[1760801538839,4.8682,184.83,184.76,2.65]
[1760801539746,4.8682,184.83,184.76,31.35]
[1760801539951,4.8682,184.83,184.76,2.65]
[1760801540949,4.8682,184.83,184.76,4.8697]
[1760801541152,4.8682,184.83,184.77,2.65]
[1760801541448,10.36060066,184.95,184.78,4.8693]
[1760801541655,2.67,184.91,184.79,2.65]
[1760801541952,4.12958399,184.9,184.8,62.0]
[1760801542152,2.67,184.91,184.8,62.0]
[1760801542454,4.12990158,184.9,184.8,62.0]
[1760801542658,2.67,184.91,184.8,62.0]
[1760801542955,4.8672,184.87,184.8,62.0]
[1760801543656,5.3635111,184.91,184.8,62.0]
[1760801543846,2.67,184.89,184.8,62.0]
[1760801544050,4.8674,184.86,184.8,62.0]
[1760801545751,4.8674,184.86,184.8,66.8687]
[1760801546354,4.8668,184.88,184.8,66.8687]
[1760801546652,2.67,184.89,184.8,66.8687]
[1760801546856,5.3635111,184.91,184.8,62.0]
[1760801547048,2.67,184.89,184.8,62.0]
[1760801547253,2.67,184.87,184.8,62.0]
[1760801547948,4.8677,184.85,184.8,62.0]
[1760801548257,4.8677,184.85,184.81,2.65]
[1760801548858,4.8677,184.85,184.8,62.0]
[1760801549062,2.67,184.87,184.8,64.65]
[1760801549063,7.5371,184.87,184.8,64.65]
[1760801549258,2.67,184.87,184.8,64.65]
[1760801549558,2.67,184.87,184.8,2.65]
[1760801551055,4.8674,184.86,184.8,2.65]
[1760801551257,9.72147207,184.9,184.76,45.0]
[1760801551453,4.8676,184.85,184.77,2.65]
[1760801551755,2.67,184.88,184.77,2.65]
[1760801551954,4.14053959,184.87,184.77,2.65]
[1760801552157,2.67,184.88,184.77,2.65]
[1760801552358,4.8682,184.83,184.79,2.65]
[1760801553663,2.67,184.82,184.76,45.0]
[1760801553857,7.5384,184.82,184.76,45.0]
[1760801554562,4.8684,184.82,184.76,45.0]
[1760801554762,4.8684,184.82,184.77,2.65]
[1760801555159,4.8684,184.82,184.76,49.8697]
[1760801556153,4.8684,184.82,184.77,2.65]
[1760801556559,4.8687,184.81,184.77,62.0]
[1760801556866,4.8687,184.81,184.78,2.65]
[1760801557858,4.8687,184.81,184.77,2.65]
[1760801558257,4.8687,184.81,184.76,45.0]
[1760801558758,6.81015739,184.89,184.77,2.65]
[1760801558963,2.67,184.89,184.78,45.0]
[1760801559158,2.67,184.89,184.79,2.65]
[1760801559364,2.67,184.89,184.81,2.10554396]
[1760801559769,7.5377,184.85,184.81,4.75554396]
[1760801560265,4.8671,184.87,184.81,2.10554396]
[1760801560470,2.67,184.89,184.81,66.75554396]
[1760801560966,2.67,184.89,184.83,2.10554396]
[1760801561468,2.67,184.87,184.79,2.10554396]
[1760801561666,2.67,184.87,184.79,45.02]
[1760801562064,2.10554396,184.88,184.79,45.02]
[1760801562369,2.67,184.85,184.79,45.02]
[1760801562972,4.8682,184.83,184.78,45.02]
[1760801563163,4.8682,184.83,184.79,2.65]
[1760801563564,7.5376,184.85,184.79,2.65]
[1760801564666,7.5376,184.85,184.81,2.65]
[1760801566469,2.64,184.83,184.78,4.8692]
[1760801566671,2.64,184.83,184.78,52.6392]
[1760801566870,2.64,184.83,184.79,2.77]
[1760801567072,4.868,184.84,184.79,2.77]
[1760801567265,4.868,184.84,184.78,4.8692]
[1760801567465,4.868,184.84,184.8,2.77]
[1760801567672,4.8674,184.86,184.8,2.77]
[1760801568268,4.8674,184.86,184.8,47.77]
[1760801568573,4.8674,184.86,184.8,2.77]
[1760801568774,4.8674,184.86,184.8,29.39]
[1760801568970,4.8674,184.86,184.8,47.77]
[1760801569273,4.8676,184.85,184.79,4.869]
[1760801569470,4.8676,184.85,184.8,107.0]
[1760801569671,4.8676,184.85,184.81,2.77]
[1760801570073,4.8676,184.85,184.8,62.0]
[1760801570270,4.8676,184.85,184.81,2.77]
[1760801570473,4.8676,184.85,184.8,107.0]
[1760801570666,4.8676,184.85,184.81,2.77]
[1760801570867,4.8676,184.85,184.8,107.0]
[1760801571067,4.8676,184.85,184.81,2.77]
[1760801571269,4.8679,184.84,184.8,45.0]
[1760801571576,7.5079,184.84,184.78,47.77]
[1760801571774,4.8682,184.83,184.78,2.77]
[1760801571964,2.64,184.82,184.78,2.77]
[1760801572874,4.8682,184.83,184.78,2.77]
[1760801573465,4.8682,184.83,184.77,49.8695]
[1760801573876,4.8682,184.83,184.77,52.6395]
[1760801574374,4.8682,184.83,184.79,2.77]
[1760801574570,7.5082,184.83,184.79,2.77]
[1760801575275,2.64,184.82,184.79,2.77]
[1760801575571,2.64,184.8,184.75,7.64]
[1760801575775,2.64,184.8,184.72,3.29087274]
[1760801575776,3.29087274,184.87,184.76,2.77]
[1760801575969,2.64,184.85,184.76,2.77]
[1760801576168,4.14410164,184.84,184.76,24.79]
[1760801576369,2.64,184.85,184.76,2.77]
[1760801576574,4.14410362,184.84,184.76,24.77]
[1760801576780,2.64,184.85,184.72,3.29087274]
[1760801576968,2.64,184.85,184.76,2.77]
[1760801577165,4.14460923,184.84,184.76,2.77]
[1760801577370,2.64,184.85,184.78,2.77]
[1760801578075,2.64,184.85,184.78,7.6392]
[1760801578076,4.8679,184.84,184.78,7.6392]
[1760801578467,4.8679,184.84,184.79,62.0]
[1760801578868,2.64,184.83,184.79,64.77]
[1760801579871,8.2879623,184.9,184.75,3.29087274]
[1760801579872,2.64,184.88,184.75,2.77]
[1760801580073,2.64,184.86,184.75,2.77]
[1760801580378,5.93087274,184.84,184.72,2.77]
[1760801580677,2.64,184.8,184.7,4.8713]
[1760801581072,4.8692,184.79,184.72,2.77]
[1760801582781,4.8692,184.79,184.72,64.77]
[1760801583781,4.8695,184.78,184.72,64.77]
[1760801583981,2.64,184.8,184.72,64.77]
[1760801584184,2.64,184.8,184.72,2.77]
[1760801584984,4.8698,184.77,184.72,2.77]
[1760801585183,2.64,184.76,184.69,9.10451346]
[1760801585375,2.64,184.76,184.7,7.6413]
[1760801585579,7.5091,184.79,184.7,2.77]
[1760801586081,4.8686,184.81,184.73,2.65]
[1760801586282,4.8686,184.81,184.73,47.63]
[1760801586483,4.8686,184.81,184.74,2.65]
[1760801586675,4.8681,184.83,184.75,4.87]
[1760801586879,4.8681,184.83,184.76,2.65]
[1760801587280,4.8681,184.83,184.77,62.0]
[1760801587480,4.8681,184.83,184.78,2.65]
[1760801587683,2.81,184.84,184.77,69.5196]
[1760801587876,2.81,184.88,184.78,2.65]
[1760801588079,4.13996674,184.87,184.78,52.4993]
[1760801588278,4.8686,184.82,184.77,62.0]
[1760801588485,2.81,184.81,184.77,64.65]
[1760801588684,4.8686,184.82,184.78,2.65]
[1760801588884,7.6786,184.82,184.78,2.65]
[1760801589380,4.8686,184.82,184.77,62.0]
[1760801589585,2.81,184.8,184.75,47.65]
[1760801589775,2.81,184.85,184.73,3.29087274]
[1760801590075,2.81,184.82,184.71,2.65]
[1760801590275,2.81,184.77,184.69,0.94194072]
[1760801590485,2.81,184.77,184.63,66.30566962]
[1760801590486,2.81,184.75,184.65,2.65]
[1760801590886,7.6802,184.75,184.65,3.59199172]
[1760801591183,7.6802,184.75,184.65,48.61199172]
[1760801591381,7.6802,184.75,184.65,3.59199172]
[1760801591585,7.6802,184.75,184.66,45.02]
[1760801591883,4.8696,184.78,184.68,2.65]
[1760801592081,4.8696,184.78,184.65,0.94199172]
[1760801592082,4.8696,184.78,184.7,2.65]
[1760801592283,2.81,184.79,184.7,2.65]
[1760801592683,2.81,184.79,184.71,107.04]
[1760801593184,2.81,184.82,184.71,45.04]
[1760801593389,4.8699,184.77,184.71,45.04]
[1760801593588,2.81,184.82,184.66,2.65]
[1760801593889,2.81,184.8,184.66,2.65]
[1760801594079,2.81,184.78,184.66,2.65]
[1760801594479,7.6807,184.74,184.66,2.65]
[1760801596987,7.6807,184.74,184.66,7.5223]
[1760801597588,7.6807,184.74,184.66,2.65]
[1760801599087,7.6807,184.74,184.66,52.5423]
[1760801599291,7.6807,184.74,184.67,45.04]
[1760801599891,7.6807,184.74,184.66,52.5623]
[1760801600087,7.6807,184.74,184.66,7.5223]
[1760801600591,7.6807,184.74,184.66,52.5623]
[1760801600891,7.6807,184.74,184.66,7.5223]
[1760801601192,4.8709,184.73,184.66,47.69]
[1760801601391,4.8709,184.73,184.66,2.65]
[1760801602489,4.8712,184.72,184.66,2.65]
[1760801604080,7.4914,184.71,184.66,2.65]
[1760801604280,7.4914,184.71,184.61,8.83696704]
[1760801604281,4.15498207,184.79,184.62,2.82]
[1760801604485,2.62,184.76,184.58,2.82]
[1760801604690,2.62,184.66,184.59,0.9422978]
[1760801605288,2.62,184.64,184.59,0.9422978]
[1760801605490,2.62,184.72,184.59,0.9422978]
[1760801605889,2.62,184.72,184.6,2.82]
[1760801606288,2.62,184.72,184.61,2.82]
[1760801606488,2.62,184.75,184.61,2.82]
[1760801606687,2.62,184.75,184.67,4.8721]
[1760801606892,2.62,184.75,184.68,2.82]
[1760801607093,2.62,184.75,184.68,64.82]
[1760801607296,7.4907,184.73,184.68,64.82]
[1760801607491,2.62,184.72,184.68,62.0]
[1760801607691,2.62,184.72,184.65,52.8327]
[1760801608393,2.62,184.72,184.65,7.6927]
[1760801608985,7.4911,184.72,184.65,7.6927]
[1760801610688,7.4911,184.72,184.66,62.0]
[1760801611591,4.8714,184.71,184.66,62.0]
[1760801611795,4.8714,184.71,184.67,2.82]
[1760801611796,7.4914,184.71,184.67,2.82]
[1760801612994,2.62,184.71,184.67,2.82]
[1760801613195,2.62,184.72,184.64,45.12]
[1760801613701,2.62,184.72,184.63,47.94]
[1760801613894,2.62,184.72,184.63,2.82]
[1760801614298,2.62,184.77,184.59,3.7622978]
[1760801614496,2.62,184.75,184.59,13.8222978]
[1760801614695,2.62,184.77,184.59,3.7622978]
[1760801614896,2.62,184.75,184.59,3.7622978]
[1760801615202,2.62,184.74,184.6,2.82]
[1760801615593,4.14495642,184.76,184.61,62.0]
[1760801615795,2.62,184.69,184.62,2.82]
[1760801615995,9.7395,184.77,184.62,2.82]
[1760801615996,2.62,184.74,184.62,2.82]
[1760801616396,4.8714,184.71,184.64,2.82]
[1760801618100,4.8714,184.71,184.59,0.9422978]
[1760801618101,2.62,184.72,184.6,2.82]
[1760801618306,2.62,184.72,184.61,2.82]
[1760801618596,2.62,184.72,184.65,4.8726]
[1760801618797,2.62,184.72,184.66,2.82]
[1760801619299,2.62,184.72,184.66,64.82]
[1760801620696,4.8703,184.75,184.66,64.82]
[1760801620892,4.8703,184.75,184.67,2.82]
[1760801621203,4.8708,184.73,184.66,64.82]
[1760801621902,4.8711,184.72,184.66,64.82]
[1760801622103,2.62,184.74,184.66,64.82]
[1760801622297,2.62,184.74,184.67,2.82]
[1760801623102,9.7367,184.82,184.66,107.14]
[1760801623103,4.8699,184.76,184.68,4.8718]
[1760801623301,4.8699,184.76,184.69,2.82]
[1760801623699,4.8699,184.76,184.69,7.6916]
[1760801624306,7.4894,184.78,184.71,2.82]
[1760801624907,2.62,184.78,184.72,4.8708]
[1760801625106,4.8689,184.8,184.72,4.8708]
[1760801625411,4.8689,184.8,184.73,2.82]
[1760801625707,2.62,184.81,184.73,2.82]
[1760801625908,94.35532709,184.83,184.69,47.98]
[1760801625909,2.62,184.82,184.69,47.98]
[1760801626107,4.15704244,184.81,184.69,47.98]
[1760801626303,4.8698,184.77,184.69,2.82]
[1760801627102,4.8698,184.77,184.7,4.8715]
[1760801628803,94.35532709,184.83,184.69,2.82]
[1760801628804,4.8702,184.75,184.69,2.82]
[1760801629703,2.79,184.76,184.69,7.6916]
[1760801630809,7.6601,184.76,184.69,7.6916]
[1760801633011,4.8694,184.78,184.71,2.63]
[1760801634400,97.14532709,184.83,184.73,2.63]
[1760801634706,4.17123018,184.82,184.73,2.63]
[1760801634908,4.8691,184.8,184.73,2.63]
[1760801635104,2.79,184.82,184.73,2.63]
[1760801635298,2.79,184.8,184.73,2.63]
[1760801635500,4.8693,184.79,184.73,2.63]
[1760801637312,94.35532709,184.83,184.73,2.63]
[1760801637313,2.79,184.77,184.73,2.63]
[1760801637507,2.79,184.77,184.7,2.63]
[1760801639008,2.79,184.77,184.7,7.5014]
[1760801640307,2.79,184.77,184.69,5.36692735]
[1760801640308,2.79,184.77,184.69,50.48692735]
[1760801640605,4.74626603,184.82,184.68,4.8719]
[1760801640606,4.98099399,184.82,184.68,52.6219]
[1760801640808,2.79,184.72,184.68,47.75]
[1760801641012,2.79,184.72,184.68,2.63]
[1760801641412,2.79,184.71,184.66,69.99692735]
[1760801641806,2.79,184.71,184.67,2.63]
[1760801642004,2.79,184.79,184.69,2.63]
[1760801642210,2.79,184.79,184.68,45.12]
[1760801642211,94.35532709,184.83,184.71,2.63]
[1760801642415,6.95850142,184.82,184.71,2.63]
[1760801642711,4.8688,184.81,184.74,7.99692735]
[1760801642913,4.8688,184.81,184.74,53.13692735]
[1760801643116,99.22342709,184.83,184.75,2.63]
[1760801643312,2.79,184.82,184.64,2.63]
[1760801643516,2.79,184.82,184.65,39.56692735]
[1760801643517,4.8699,184.76,184.65,39.56692735]
[1760801643816,2.79,184.76,184.66,2.63]
[1760801644417,4.8708,184.73,184.67,18.26]
[1760801644612,4.8708,184.73,184.66,2.63]
[1760801644810,4.8712,184.71,184.66,2.63]
[1760801645111,7.6612,184.71,184.67,47.87]
[1760801645415,7.6608,184.73,184.68,45.26]
[1760801645611,2.76,184.72,184.68,45.26]
[1760801645811,2.76,184.72,184.66,2.63]
[1760801646113,2.76,184.72,184.67,2.71]
[1760801646314,2.76,184.72,184.68,45.26]
[1760801646512,7.6312,184.72,184.67,2.71]
[1760801646713,2.76,184.77,184.68,45.26]
[1760801647008,4.8714,184.71,184.69,45.24]
[1760801647210,7.6314,184.71,184.69,45.24]
[1760801647614,4.74469005,184.79,184.69,45.24]
[1760801647615,2.76,184.75,184.69,45.24]
[1760801647814,4.74469005,184.79,184.7,45.24]
[1760801648008,6.92861001,184.78,184.67,2.71]
[1760801648212,2.76,184.78,184.67,2.71]
[1760801648406,2.76,184.78,184.68,15.28]
[1760801649017,4.8702,184.75,184.67,7.5821]
[1760801649216,4.8702,184.75,184.68,24.86]
[1760801649413,4.8702,184.75,184.68,29.7319]
[1760801649613,4.8697,184.77,184.69,2.71]
[1760801649808,4.8697,184.77,184.7,19.76]
[1760801650008,4.8697,184.77,184.71,62.0]
[1760801650313,7.6297,184.77,184.72,47.95]
[1760801650519,7.6297,184.77,184.73,2.71]
[1760801651115,2.76,184.72,184.6,2.71]
[1760801651321,4.1678393,184.71,184.6,26.57]
[1760801651516,8.12692735,184.72,184.6,26.57]
[1760801651717,4.16704638,184.71,184.61,36.3]
[1760801651922,2.76,184.72,184.62,2.71]
[1760801652117,2.76,184.72,184.63,62.0]
[1760801652419,2.76,184.72,184.64,2.71]
[1760801652620,7.17692735,184.76,184.64,2.71]
[1760801653015,7.17692735,184.76,184.66,2.71]
[1760801653919,7.17692735,184.76,184.66,30.65]
[1760801654115,4.8703,184.75,184.66,42.65]
[1760801654322,4.8703,184.75,184.66,47.97]
[1760801654630,4.8703,184.75,184.66,2.71]
[1760801654925,4.8703,184.75,184.66,22.63]
[1760801655323,7.17692735,184.76,184.67,2.71]
[1760801655519,4.8697,184.77,184.69,2.71]
[1760801655720,4.8697,184.77,184.7,45.28]
[1760801656529,1.81,184.79,184.71,2.81]
[1760801656828,4.8691,184.8,184.73,2.81]
[1760801657222,4.8691,184.8,184.73,48.09]
[1760801658229,4.8684,184.82,184.73,48.03]
[1760801658529,4.869,184.8,184.74,45.26]
[1760801659128,4.869,184.8,184.74,107.26]
[1760801659927,4.869,184.8,184.74,62.0]
[1760801660628,4.869,184.8,184.76,2.81]
[1760801661021,6.809,184.8,184.76,2.81]
[1760801661631,6.809,184.8,184.76,48.05]
[1760801662023,99.22362709,184.83,184.76,48.05]
[1760801662229,94.35532709,184.83,184.77,2.81]
[1760801662630,96.29532709,184.83,184.78,48.05]
[1760801662830,96.29532709,184.83,184.78,45.24]
[1760801663035,96.29532709,184.83,184.79,2.81]
[1760801663727,96.29532709,184.83,184.79,48.05]
[1760801663928,96.29532709,184.83,184.79,2.81]
[1760801664232,96.29532709,184.83,184.8,45.24]
[1760801664427,96.29532709,184.83,184.79,2.81]
[1760801664629,96.29532709,184.83,184.8,45.24]
[1760801665032,101.16352709,184.83,184.75,2.81]
[1760801665334,101.16352709,184.83,184.76,45.24]
[1760801665538,1.94,184.82,184.75,2.81]
[1760801665836,1.94,184.82,184.76,45.24]
[1760801666133,1.94,184.82,184.63,13.07008272]
[1760801666134,94.35532709,184.83,184.77,2.81]
[1760801666332,94.35532709,184.83,184.79,2.81]
[1760801666832,94.35532709,184.83,184.8,2.81]
[1760801668531,94.35532709,184.83,184.78,13.61]
[1760801668733,96.29532709,184.83,184.78,75.61]
[1760801669134,96.29532709,184.83,184.78,64.81]
[1760801669436,94.35532709,184.83,184.8,2.81]
[1760801670138,94.35532709,184.83,184.8,48.03]
[1760801670344,94.35532709,184.83,184.8,2.81]
[1760801670640,94.35532709,184.83,184.8,48.03]
[1760801670936,1.94,184.87,184.81,2.81]
[1760801671136,1.94,184.87,184.81,48.03]
[1760801671336,1.94,184.87,184.81,2.81]
[1760801671539,1.94,184.87,184.81,48.03]
[1760801671931,4.8675,184.86,184.81,48.01]
[1760801672233,1.94,184.87,184.78,66.8692]
[1760801672234,1.94,184.87,184.78,69.6792]
[1760801672438,1.94,184.87,184.79,45.2]
[1760801672744,4.8679,184.84,184.78,64.81]
[1760801672935,1.94,184.83,184.79,48.01]
[1760801673135,1.94,184.83,184.79,2.81]
[1760801673333,1.94,184.83,184.8,45.2]
[1760801673842,4.8683,184.83,184.8,45.2]
[1760801674040,1.94,184.82,184.76,4.8698]
[1760801674444,1.94,184.82,184.77,19.97]
[1760801675137,1.94,184.82,184.77,2.81]
[1760801675729,1.94,184.81,184.78,17.16]
[1760801675934,1.94,184.8,184.74,4.8704]
[1760801676142,1.94,184.8,184.75,45.18]
[1760801676341,1.94,184.8,184.76,2.81]
[1760801680341,4.8682,184.83,184.77,2.81]
[1760801680546,1.94,184.85,184.77,2.81]
[1760801680743,1.94,184.85,184.77,47.97]
[1760801680942,1.94,184.85,184.78,45.16]
[1760801681948,4.8679,184.84,184.78,45.16]
[1760801683049,4.8679,184.84,184.77,7.6795]
[1760801683249,4.8679,184.84,184.78,45.14]
[1760801683437,4.8679,184.84,184.79,45.14]
[1760801683643,6.8079,184.84,184.8,2.81]
[1760801685042,6.8079,184.84,184.79,45.14]
[1760801685243,4.8674,184.86,184.8,2.81]
[1760801685550,4.8674,184.86,184.8,47.95]
[1760801686244,4.8674,184.86,184.8,2.81]
[1760801686444,6.7977,184.85,184.81,2.65]
[1760801688540,4.8671,184.87,184.8,2.65]
[1760801688846,4.8671,184.87,184.8,35.65]
[1760801689249,4.8671,184.87,184.8,2.65]
[1760801689447,4.8671,184.87,184.8,47.77]
[1760801689648,4.8671,184.87,184.81,2.65]
[1760801689850,4.8671,184.87,184.81,20.47]
[1760801690046,1.93,184.88,184.82,2.65]
[1760801690350,4.8665,184.89,184.82,2.65]
[1760801690745,4.8665,184.89,184.82,34.11]
[1760801690948,4.8665,184.89,184.82,38.9781]
[1760801691348,4.8665,184.89,184.82,52.6181]
[1760801692450,8.82733179,184.94,184.82,47.75]
[1760801692451,1.93,184.88,184.82,47.75]
[1760801693759,1.93,184.92,184.78,7.5193]
[1760801693952,4.16490647,184.91,184.79,45.1]
[1760801694157,1.93,184.89,184.8,2.65]
[1760801694354,4.16541805,184.88,184.8,2.65]
[1760801694555,1.93,184.89,184.8,2.65]
[1760801694953,4.8674,184.86,184.8,7.5187]
[1760801696457,4.8674,184.86,184.8,2.65]
[1760801697553,9.77728152,184.91,184.8,2.65]
[1760801697554,4.8677,184.85,184.8,47.73]
[1760801697754,1.93,184.84,184.8,2.65]
[1760801698256,4.8671,184.87,184.8,2.65]
[1760801700157,4.8671,184.87,184.8,7.5186]
[1760801700454,1.93,184.89,184.81,4.8684]
[1760801700656,1.93,184.89,184.8,2.65]
[1760801700657,4.17868084,184.88,184.8,2.65]
[1760801700861,4.98099399,184.92,184.75,2.65]
[1760801700862,4.17825311,184.87,184.75,2.65]
[1760801701062,4.8684,184.82,184.75,2.65]
[1760801701255,4.8684,184.82,184.76,49.9497]
[1760801701451,6.7979,184.84,184.77,2.65]
[1760801701857,6.7979,184.84,184.78,4.8692]
[1760801702263,6.7979,184.84,184.79,45.08]
[1760801702564,6.7979,184.84,184.79,47.73]
[1760801703165,4.8674,184.86,184.8,2.65]
[1760801703959,6.7974,184.86,184.81,45.08]
[1760801704164,6.7974,184.86,184.81,47.73]
[1760801704361,4.8677,184.85,184.78,4.8693]
[1760801704558,6.1104201,184.84,184.78,2.65]
[1760801704763,4.18020091,184.83,184.75,2.65]
[1760801704968,6.7993,184.79,184.75,2.65]
[1760801705165,6.7993,184.79,184.75,47.75]
[1760801705361,8.82733179,184.86,184.75,45.1]
[1760801705362,4.8686,184.81,184.75,45.1]
[1760801705567,4.8686,184.81,184.75,47.75]
[1760801705769,4.8686,184.81,184.75,2.65]
[1760801706064,6.7986,184.81,184.77,2.71]
[1760801706269,6.799,184.8,184.69,2.71]
[1760801706568,6.799,184.8,184.71,2.71]
[1760801706861,4.8693,184.79,184.71,7.5812]
[1760801707067,4.8693,184.79,184.72,45.1]
[1760801707564,4.8696,184.78,184.71,2.71]
[1760801707763,4.8696,184.78,184.72,45.1]
[1760801707963,4.8696,184.78,184.72,107.1]
[1760801709066,4.8696,184.78,184.73,2.71]
[1760801709272,4.8696,184.78,184.72,107.1]
[1760801709771,4.8696,184.78,184.72,109.81]
[1760801710364,4.8696,184.78,184.72,64.71]
[1760801710569,4.8696,184.78,184.73,45.1]
[1760801710766,4.8696,184.78,184.74,2.71]
[1760801710966,6.7996,184.78,184.74,2.71]
[1760801712065,6.7996,184.78,184.74,47.79]
[1760801713768,6.7996,184.78,184.74,2.71]
[1760801713972,6.7996,184.78,184.74,47.79]
[1760801714171,3.29373621,184.82,184.75,2.71]
[1760801714372,4.17805972,184.81,184.75,2.71]
[1760801714568,5.22373621,184.82,184.74,2.71]
[1760801714774,1.93,184.8,184.76,2.71]
[1760801715571,4.80536327,184.85,184.72,62.0]
[1760801715572,1.93,184.84,184.73,2.71]
[1760801715771,1.93,184.84,184.75,2.71]
[1760801715969,1.93,184.84,184.77,2.71]
[1760801716165,1.93,184.84,184.78,45.08]
[1760801716369,1.93,184.84,184.79,45.08]
[1760801716667,1.93,184.87,184.79,45.08]
[1760801716865,1.93,184.85,184.79,45.08]
[1760801717077,4.17861417,184.84,184.79,45.08]
[1760801717374,1.93,184.83,184.76,2.63]